bitfinex/quotes_ETHUSD_20240823
["timestamp","ask_amount","ask_price","bid_price","bid_amount"]
[1724440480435,11.76027333,2738.5,2737.9,3.65235]
[1724440480670,8.10855333,2738.5,2737.9,3.65235]
[1724440480869,3.11271607,2739.1,2737.8,2.2745]
[1724440481073,6.07071,2739.1,2738.5,3.65157]
[1724440481239,6.07071,2739.1,2738.5,7.30314]
[1724440481462,3.65088,2739.1,2738.5,0.730314]
[1724440481644,3.65088,2739.1,2738.4,3.65171]
[1724440481836,7.91696326,2739.1,2738.4,7.3034]
[1724440482037,3.65061,2739.3,2738.4,3.65169]
[1724440482277,3.65061,2739.3,2738.6,3.65147]
[1724440482278,3.65081,2739.2,2738.6,3.65147]
[1724440482471,3.65084,2739.1,2738.4,3.65166]
[1724440482742,7.30177,2739.1,2738.4,3.65166]
[1724440482942,4.381017,2739.1,2738.4,3.65166]
[1724440483686,4.381017,2739.1,2738.4,3.65165]
[1724440483893,3.65084,2739.1,2738.5,3.65155]
[1724440484040,2.4198,2739.4,2738.4,3.65171]
[1724440484244,3.65118,2738.9,2738.2,3.65198]
[1724440484498,7.30238,2738.9,2738.2,3.65198]
[1724440484789,3.65118,2738.9,2738.2,3.65202]
[1724440484945,9.3363172,2739.1,2738.4,3.65175]
[1724440485135,4.58468172,2739.0,2738.4,3.65175]
[1724440485340,0.93363172,2739.0,2738.1,2.2745]
[1724440485542,3.65119,2738.9,2738.2,3.65202]
[1724440486202,3.65089,2739.1,2738.4,3.65168]
[1724440486375,3.65089,2739.1,2738.5,3.65153]
[1724440486601,7.30182,2739.1,2738.4,3.65166]
[1724440486888,3.65102,2739.0,2738.4,3.65166]
[1724440487095,3.65102,2739.0,2738.2,3.65199]
[1724440487096,4.381311,2738.9,2738.2,7.30393]
[1724440487240,4.381311,2738.9,2738.2,3.65194]
[1724440487444,4.381311,2738.9,2738.3,3.65187]
[1724440487798,7.9512172,2738.8,2738.0,3.65222]
[1724440488103,2.2658,2738.8,2738.3,3.65187]
[1724440488386,0.6647151,2738.8,2738.2,3.65194]
[1724440488743,4.3159551,2738.8,2738.2,3.65194]
[1724440489562,3.65145,2738.7,2738.1,3.65215]
[1724440489766,7.9673051,2738.8,2738.2,3.652]
[1724440490004,0.51584847,2738.7,2738.2,3.652]
[1724440490371,7.9512172,2739.1,2738.4,3.65176]
[1724440490558,3.0,2739.0,2738.4,3.65176]
[1724440490758,3.65107,2739.0,2738.4,3.65176]
[1724440490993,7.30214,2739.0,2738.4,3.65169]
[1724440491392,3.65107,2739.0,2738.4,3.65169]
[1724440491598,4.907834,2739.0,2738.4,3.65169]
[1724440491814,3.65133,2738.8,2738.2,3.65192]
[1724440492169,3.65133,2738.8,2738.2,7.30387]
[1724440492478,3.65133,2738.8,2738.3,3.65189]
[1724440492714,4.907814,2739.0,2738.3,3.65189]
[1724440492920,2.2658,2739.1,2738.6,3.65142]
[1724440493198,5.91663,2739.1,2738.4,3.65164]
[1724440493518,3.0,2739.0,2738.7,3.65136]
[1724440493811,3.0,2739.1,2738.7,3.65136]
[1724440494114,5.99417,2739.4,2738.8,3.6512]
[1724440494423,7.16849421,2739.4,2738.8,3.6512]
[1724440495015,3.64977,2739.9,2739.0,3.65092]
[1724440495016,3.71390495,2739.6,2739.0,3.65092]
[1724440495173,7.3005,2739.6,2739.0,3.65092]
[1724440495373,3.65025,2739.6,2739.0,3.65092]
[1724440495713,5.74905972,2739.9,2739.3,3.65048]
[1724440495714,0.06364252,2739.9,2739.3,3.65048]
[1724440495866,3.64961,2740.1,2739.5,3.6502]
[1724440496132,0.729901,2740.0,2739.5,3.6502]
[1724440496719,0.729901,2740.0,2739.6,3.65006]
[1724440496870,7.29887,2740.2,2739.5,3.65017]
[1724440497068,3.6494,2740.2,2739.4,2.2666]
[1724440497411,3.64965,2740.0,2739.4,2.2666]
[1724440497978,3.64965,2740.0,2739.4,5.91694]
[1724440498483,3.6494,2740.2,2739.6,3.65014]
[1724440498684,3.6495,2740.1,2739.4,5.91695]
[1724440498985,3.64964,2740.0,2738.9,2.301]
[1724440499517,3.64964,2740.0,2739.3,3.65056]
[1724440499697,3.64964,2740.0,2739.3,3.65043]
[1724440499897,3.64964,2740.0,2738.9,5.95206]
[1724440500111,4.93464015,2740.2,2739.0,0.895206]
[1724440500333,4.93464015,2740.2,2739.5,3.65022]
[1724440500470,3.64971,2740.0,2739.3,7.30091]
[1724440500845,4.93471015,2740.2,2739.5,3.65022]
[1724440500846,4.93468015,2740.2,2739.5,3.65022]
[1724440500982,4.93468015,2740.2,2739.5,3.6502]
[1724440501314,3.64963,2740.0,2739.4,3.65042]
[1724440501680,0.49346802,2740.1,2739.5,3.65021]
[1724440501973,0.49346802,2740.1,2739.5,7.30042]
[1724440502233,0.49346802,2740.1,2739.5,3.65021]
[1724440502373,4.14298802,2740.1,2739.5,3.65021]
[1724440502727,0.54282582,2740.0,2739.5,7.30043]
[1724440503022,0.54282582,2740.0,2739.7,3.65003]
[1724440503171,4.28527015,2740.2,2739.7,3.65003]
[1724440503371,4.28527015,2740.2,2739.7,3.64993]
[1724440503582,4.43223095,2742.3,2740.0,3.64959]
[1724440503583,7.2979,2740.6,2740.0,3.64959]
[1724440503920,7.29791,2740.6,2740.0,3.64959]
[1724440504103,3.64895,2740.6,2739.8,3.64979]
[1724440504308,3.64895,2740.6,2739.2,3.65065]
[1724440504309,3.64965,2740.0,2739.3,3.65056]
[1724440504472,0.364965,2739.9,2739.3,3.65056]
[1724440504676,0.364965,2739.9,2739.4,3.65033]
[1724440504904,0.364965,2739.9,2739.3,3.65055]
[1724440505490,0.364965,2739.9,2739.4,3.65036]
[1724440506018,0.364965,2739.9,2739.3,3.65055]
[1724440506217,0.4014615,2739.8,2739.3,3.65055]
[1724440506380,4.0513615,2739.8,2739.3,3.65055]
[1724440507686,4.0513615,2739.8,2739.1,3.65077]
[1724440507687,3.65003,2739.7,2739.1,3.65073]
[1724440507894,4.0514615,2739.8,2739.2,3.65066]
[1724440508111,0.4014615,2739.8,2739.3,3.65051]
[1724440508491,0.50278124,2739.7,2739.3,3.65049]
[1724440508784,0.50278124,2739.7,2739.3,7.30097]
[1724440508961,0.4014615,2739.8,2739.3,3.65048]
[1724440510045,3.6502,2739.6,2739.1,3.65074]
[1724440510286,3.65027,2739.6,2738.9,3.651]
[1724440510494,6.10522,2739.7,2738.6,2.268]
[1724440510711,2.4551,2739.7,2738.7,3.65131]
[1724440510843,3.4014615,2739.8,2739.2,3.65059]
[1724440511044,3.4014615,2739.8,2739.3,3.65045]
[1724440511274,0.4014615,2739.8,2738.8,0.591931]
[1724440511511,3.0,2739.9,2739.5,3.65018]
[1724440511668,7.26138589,2739.9,2738.9,2.268]
[1724440511877,3.64997,2739.8,2738.9,3.65104]
[1724440512159,4.44125559,2739.7,2739.1,3.65075]
[1724440512389,2.4559,2739.6,2738.6,2.3525]
[1724440512548,3.65039,2739.5,2738.8,3.6511]
[1724440512752,3.65044,2739.4,2738.8,3.6511]
[1724440513101,3.65038,2739.5,2738.9,3.65109]
[1724440513405,1.03676659,2739.4,2738.9,3.65109]
[1724440513749,7.91198589,2739.3,2738.4,3.65168]
[1724440513959,3.65091,2739.1,2738.5,3.65153]
[1724440514302,0.602391,2739.0,2738.5,3.65153]
[1724440515093,0.602391,2739.0,2738.6,3.65142]
[1724440515263,6.0238,2739.2,2738.5,3.65153]
[1724440515616,3.65087,2739.1,2738.5,3.65153]
[1724440516096,2.373,2739.2,2738.8,3.6512]
[1724440516596,2.373,2739.2,2738.6,3.65148]
[1724440516597,3.0,2739.3,2738.6,2.2604]
[1724440516799,5.3415,2739.6,2739.0,3.65086]
[1724440516997,0.899159,2739.5,2739.0,3.65086]
[1724440517156,5.3415,2739.6,2739.2,3.65068]
[1724440517157,2.3415,2739.6,2739.2,3.65068]
[1724440517358,2.3415,2739.6,2738.8,7.3023]
[1724440517563,2.3415,2739.6,2738.8,3.65112]
[1724440517564,7.91169589,2739.5,2738.8,3.65112]
[1724440517941,7.91169589,2739.5,2738.8,7.30226]
[1724440518100,4.26138589,2739.5,2738.3,2.2788]
[1724440518299,0.66028859,2739.4,2738.9,3.65101]
[1724440518482,4.31071859,2739.4,2738.9,3.65101]
[1724440518667,4.31071859,2739.4,2738.7,3.65126]
[1724440518862,0.66028859,2739.4,2738.7,3.65126]
[1724440519095,0.66028859,2739.4,2738.9,7.30199]
[1724440519265,0.66028859,2739.4,2738.9,3.65099]
[1724440519681,0.43106386,2739.3,2738.7,3.65125]
[1724440519868,0.43106386,2739.3,2738.8,3.65118]
[1724440520078,0.43106386,2739.3,2738.9,3.65109]
[1724440520495,4.08163386,2739.3,2738.7,3.65125]
[1724440521349,3.65091,2739.1,2738.6,3.65149]
[1724440521554,0.47419225,2739.2,2738.7,3.65134]
[1724440523710,2.2632,2739.3,2738.4,3.65171]
[1724440524222,2.2632,2739.3,2738.9,3.65102]
[1724440524421,3.0,2739.4,2738.9,3.65102]
[1724440524912,3.0,2739.4,2738.9,3.65108]
[1724440525081,1.33304459,2739.3,2738.6,3.65139]
[1724440525267,3.65078,2739.2,2738.6,3.65139]
[1724440525715,3.65099,2739.0,2738.4,3.65169]
[1724440526017,3.65099,2739.0,2738.4,7.30338]
[1724440526220,3.65118,2738.9,2738.0,2.3433]
[1724440526368,4.016358,2738.8,2738.0,3.65221]
[1724440526569,2.4187,2738.6,2738.0,3.65224]
[1724440526826,3.65177,2738.4,2737.8,3.65248]
[1724440526982,6.68008589,2738.6,2737.8,3.65248]
[1724440527199,3.65211,2738.2,2737.6,3.65275]
[1724440527372,2.4187,2738.1,2737.6,3.65275]
[1724440527831,6.07087,2738.1,2737.6,3.65275]
[1724440527978,2.4187,2738.1,2737.6,7.30548]
[1724440528182,2.4187,2738.1,2737.6,3.65273]
[1724440528573,6.07087,2738.1,2737.4,3.653]
[1724440528774,0.72274166,2738.0,2737.5,3.65292]
[1724440528980,0.72274166,2738.0,2737.4,3.65296]
[1724440529207,3.6528,2737.7,2737.0,4.22638177]
[1724440529380,2.4439,2737.6,2737.0,3.65362]
[1724440529577,2.4439,2737.6,2736.9,3.65368]
[1724440530137,6.09685,2737.6,2736.9,3.65368]
[1724440530273,6.09685,2737.6,2736.8,3.65385]
[1724440530274,1.40109559,2737.5,2737.0,3.65363]
[1724440530780,1.40109559,2737.5,2736.8,7.30764]
[1724440530781,5.05406559,2737.5,2736.8,7.30764]
[1724440531129,1.40109559,2737.5,2736.9,3.65376]
[1724440531283,0.74978356,2737.4,2736.9,3.65376]
[1724440531627,4.40109559,2737.5,2737.1,3.6534]
[1724440531791,3.0,2737.5,2737.1,3.6534]
[1724440531994,2.4439,2737.6,2737.1,3.65339]
[1724440533122,2.4439,2737.6,2736.9,3.65371]
[1724440533620,3.65306,2737.5,2736.7,3.65394]
[1724440533796,5.4439,2737.6,2737.0,3.65361]
[1724440534135,1.33580059,2737.5,2736.9,3.65374]
[1724440534327,4.33580059,2737.5,2736.9,3.65374]
[1724440535792,7.98880059,2737.5,2736.9,3.65374]
[1724440536182,3.65311,2737.4,2736.9,3.65374]
[1724440536498,7.98880059,2737.5,2736.9,3.65374]
[1724440536830,8.95775595,2737.4,2736.7,3.65392]
[1724440536991,5.30465595,2737.4,2736.9,3.65373]
[1724440538281,5.30465595,2737.4,2736.7,3.65392]
[1724440538572,3.65323,2737.3,2736.7,3.65392]
[1724440538721,6.65323,2737.3,2736.7,3.65392]
[1724440538922,1.1957886,2737.2,2736.7,3.65392]
[1724440539235,4.8491586,2737.2,2736.7,3.65392]
[1724440539382,2.4299,2737.1,2736.7,7.30786]
[1724440539580,3.653,2737.5,2736.3,9.7108]
[1724440539581,2.4299,2737.6,2737.0,3.65355]
[1724440539838,2.4299,2737.6,2737.0,3.65354]
[1724440540138,0.608267,2737.5,2737.2,3.65332]
[1724440540307,6.08239,2737.9,2737.3,3.6531]
[1724440540509,2.4299,2737.9,2736.8,2.3087]
[1724440540839,2.4299,2738.2,2737.6,3.65275]
[1724440541008,6.08201,2738.2,2737.5,3.65286]
[1724440541214,6.08201,2738.2,2737.5,7.30572]
[1724440541215,1.43774388,2738.1,2737.5,7.30572]
[1724440541525,1.43774388,2738.1,2737.5,7.30573]
[1724440541933,1.43774388,2738.1,2737.5,3.65286]
[1724440542255,4.43774388,2738.1,2737.5,3.65286]
[1724440542410,4.43774388,2738.1,2737.5,7.30573]
[1724440542946,4.43774388,2738.1,2737.5,3.65286]
[1724440543447,3.0,2738.1,2737.7,3.65268]
[1724440543595,2.4299,2738.2,2737.5,3.65287]
[1724440543795,2.4299,2738.2,2737.6,3.65277]
[1724440543796,6.08193,2738.2,2737.6,3.65277]
[1724440544114,3.65217,2738.1,2737.4,3.653]
[1724440544313,4.625577,2738.1,2737.5,3.65287]
[1724440544499,2.4299,2738.2,2737.7,3.65259]
[1724440546142,3.0,2738.3,2738.0,3.65228]
[1724440546451,6.04122,2738.5,2737.8,3.65254]
[1724440547007,6.645342,2738.5,2737.8,3.65254]
[1724440547641,6.645342,2738.5,2737.8,7.30501]
[1724440547937,2.3895,2738.5,2738.1,3.65205]
[1724440548137,2.3895,2738.5,2738.1,3.65203]
[1724440548571,6.04124,2738.5,2737.7,3.65263]
[1724440548699,3.65198,2738.3,2737.5,3.6529]
[1724440548897,5.69005763,2738.4,2737.7,3.65269]
[1724440549117,3.65204,2738.2,2737.7,3.65269]
[1724440549554,1.17312576,2738.3,2737.7,3.65269]
[1724440549879,6.0412,2738.5,2738.2,3.65195]
[1724440549880,2.3895,2738.5,2738.2,3.65195]
[1724440550061,2.3895,2738.5,2737.7,3.65265]
[1724440550062,5.3341,2738.8,2737.7,2.3791]
[1724440550354,5.3341,2738.8,2738.2,7.30388]
[1724440550499,5.3341,2738.8,2738.2,7.30387]
[1724440550700,0.898526,2738.7,2738.2,3.65193]
[1724440550999,4.549916,2738.7,2738.1,3.65214]
[1724440551199,3.0,2738.6,2738.1,3.65214]
[1724440551511,3.0,2738.6,2738.2,3.65202]
[1724440552305,3.0,2738.6,2738.4,3.65175]
[1724440552506,3.898526,2738.7,2738.2,3.65195]
[1724440552716,0.6232626,2738.6,2738.2,7.3039]
[1724440552936,0.6232626,2738.6,2738.2,3.65195]
[1724440553239,0.6232626,2738.6,2738.2,7.30388]
[1724440553443,0.6232626,2738.6,2738.2,3.65193]
[1724440553815,3.64954,2740.1,2739.2,3.6507]
[1724440554109,2.3247,2740.0,2739.1,3.65081]
[1724440554312,2.3247,2740.0,2739.3,3.65044]
[1724440554608,2.3247,2740.0,2739.3,3.6505]
[1724440555063,0.06364142,2740.1,2739.4,2.3717]
[1724440555261,0.06364142,2740.1,2739.3,3.6505]
[1724440555672,0.06364142,2740.1,2739.1,3.65082]
[1724440555914,2.4318,2740.0,2739.2,3.65068]
[1724440556861,2.4318,2740.0,2739.3,3.65054]
[1724440557361,2.4318,2740.0,2739.1,0.991076]
[1724440557362,5.4318,2740.0,2739.4,3.65041]
[1724440558474,6.01210901,2740.0,2739.4,3.65041]
[1724440559209,2.3293,2740.3,2739.6,3.65016]
[1724440559505,2.39292611,2740.7,2739.6,3.65016]
[1724440560100,2.39292611,2740.7,2739.6,0.07299913]
[1724440560306,2.39292611,2740.7,2740.2,3.64927]
[1724440560476,2.39292611,2740.7,2739.8,3.64986]
[1724440561061,2.39292611,2740.7,2739.7,0.25449991]
[1724440561499,2.39292611,2740.7,2740.0,3.64953]
[1724440561813,6.04165611,2740.7,2739.8,3.64987]
[1724440562119,7.25301561,2740.6,2739.7,3.65001]
[1724440562299,2.2674,2740.4,2739.5,3.65029]
[1724440562499,5.91654,2740.4,2739.6,3.65016]
[1724440562716,3.0,2740.3,2739.6,3.65016]
[1724440562922,0.55,2740.2,2739.5,3.65026]
[1724440563125,0.719924,2740.1,2739.5,3.65026]
[1724440563271,0.55,2740.2,2739.5,3.65026]
[1724440563841,3.0,2740.3,2739.8,3.64988]
[1724440564008,2.2674,2740.4,2739.8,3.64988]
[1724440564327,2.2674,2740.4,2739.6,3.65005]
[1724440564479,2.2674,2740.4,2739.8,3.64988]
[1724440564676,2.2674,2740.4,2739.9,3.64967]
[1724440564677,0.52674,2740.3,2739.9,3.64967]
[1724440565747,2.4833,2741.1,2740.4,3.64907]
[1724440566073,2.4833,2741.1,2740.3,3.64923]
[1724440566418,2.4833,2741.1,2740.4,3.6491]
[1724440567419,5.4833,2741.1,2740.4,3.6491]
[1724440567721,0.85469057,2741.0,2740.4,3.6491]
[1724440568036,3.85469057,2741.0,2740.4,3.6491]
[1724440568606,0.85469057,2741.0,2740.6,3.64872]
[1724440568812,2.4833,2741.1,2740.4,3.6491]
[1724440569524,2.4833,2741.1,2740.5,3.64896]
[1724440569723,2.4833,2741.1,2740.6,3.64882]
[1724440570382,5.4833,2741.1,2740.6,3.64873]
[1724440571369,5.4833,2741.1,2740.4,7.29804]
[1724440571498,2.3214,2740.6,2740.0,3.64953]
[1724440571688,2.3214,2740.6,2740.0,3.64955]
[1724440572844,2.3214,2740.6,2739.8,7.29962]
[1724440573184,2.3214,2740.6,2739.9,3.64976]
[1724440573453,0.89701,2740.5,2739.9,3.64976]
[1724440573882,2.4526,2740.3,2739.6,7.30017]
[1724440574084,5.4526,2740.3,2739.6,3.65007]
[1724440574385,5.4526,2740.3,2739.3,2.3638]
[1724440574386,0.60026,2740.2,2739.5,3.6502]
[1724440574585,5.4526,2740.3,2739.9,3.6497]
[1724440574891,5.4526,2740.3,2739.9,7.2994]
[1724440575228,5.4526,2740.3,2740.0,3.64959]
[1724440575430,5.4526,2740.3,2739.8,3.6498]
[1724440576107,5.4526,2740.3,2739.6,3.65007]
[1724440576463,0.60026,2740.2,2739.6,3.65007]
[1724440576612,0.60026,2740.2,2739.7,3.65]
[1724440576814,0.60026,2740.2,2739.7,3.64993]
[1724440577136,0.60026,2740.2,2739.8,3.64987]
[1724440577333,0.60026,2740.2,2739.7,7.29988]
[1724440577486,0.605286,2740.1,2739.8,3.64987]
[1724440577893,5.4526,2740.3,2739.7,3.64993]
[1724440578446,5.4526,2740.3,2739.7,7.29986]
[1724440578735,5.4526,2740.3,2739.8,3.64987]
[1724440579183,5.4526,2740.3,2739.7,3.64993]
[1724440580395,5.4526,2740.3,2739.6,3.65014]
[1724440580590,5.4526,2740.3,2739.5,3.65022]
[1724440580591,1.51517,2740.2,2739.5,3.65021]
[1724440580813,4.51517,2740.2,2739.7,3.65002]
[1724440581039,2.3257,2740.8,2740.2,3.64932]
[1724440581198,3.0,2740.7,2740.2,3.64932]
[1724440581390,2.3257,2740.8,2740.2,3.64932]
[1724440581391,0.55,2740.6,2740.2,3.64932]
[1724440581741,5.3257,2740.8,2740.2,3.64932]
[1724440581742,3.0,2740.7,2740.2,3.64932]
[1724440582034,3.0,2740.7,2739.6,2.2563]
[1724440582035,2.3257,2740.8,2740.5,7.29772]
[1724440582332,2.61373906,2740.8,2739.6,2.2563]
[1724440582541,2.61373906,2740.8,2740.0,3.64954]
[1724440582690,2.61373906,2740.8,2740.0,7.29909]
[1724440582894,2.61373906,2740.8,2740.1,3.64947]
[1724440583095,2.61373906,2740.8,2740.2,3.64931]
[1724440583309,0.81137391,2740.7,2740.2,3.64931]
[1724440583633,0.26137391,2740.7,2740.2,3.64931]
[1724440583838,0.26137391,2740.7,2739.6,2.2563]
[1724440584051,3.0,2741.0,2740.5,3.64893]
[1724440584252,2.4301,2741.1,2740.5,3.64893]
[1724440584436,3.64877,2740.7,2739.9,3.64969]
[1724440584639,2.4301,2740.8,2740.1,3.64941]
[1724440584835,0.607857,2740.7,2740.1,3.64941]
[1724440585013,0.607857,2740.7,2740.1,7.29882]
[1724440585209,0.607857,2740.7,2740.1,3.64941]
[1724440585415,0.607857,2740.7,2740.2,3.64929]
[1724440585816,0.607857,2740.7,2740.3,3.64922]
[1724440586011,2.4301,2740.8,2740.1,3.64941]
[1724440586211,2.4301,2740.8,2739.7,3.64999]
[1724440586212,2.2677,2740.6,2739.9,3.64969]
[1724440586520,0.55,2740.5,2739.9,3.64969]
[1724440587357,0.55,2740.5,2739.7,3.64997]
[1724440587358,2.4061,2740.3,2739.8,3.64981]
[1724440587553,0.24061,2740.2,2739.7,3.64997]
[1724440587761,0.24061,2740.2,2739.9,3.64969]
[1724440587960,0.24061,2740.2,2740.0,3.64956]
[1724440588550,2.4061,2740.3,2740.1,3.6495]
[1724440588821,2.4061,2740.6,2739.7,3.64995]
[1724440589025,2.4061,2740.6,2739.8,3.64986]
[1724440589268,2.4061,2740.6,2739.9,3.64969]
[1724440589425,0.54061,2740.5,2739.9,3.64969]
[1724440589737,3.54061,2740.5,2739.9,3.64969]
[1724440590969,3.54061,2740.5,2740.0,3.6496]
[1724440591269,3.0,2740.5,2740.1,3.64948]
[1724440591435,2.4061,2740.6,2740.1,3.64948]
[1724440593167,2.4061,2740.6,2740.1,3.64943]
[1724440593325,2.4061,2740.6,2740.2,3.64929]
[1724440593526,2.64671,2740.6,2740.1,3.64943]
[1724440595224,2.64671,2740.6,2740.1,3.64941]
[1724440596225,2.64671,2740.6,2740.2,3.64935]
[1724440596646,2.64671,2740.6,2740.3,3.64923]
[1724440597172,2.4088,2740.9,2740.3,3.64923]
[1724440597331,2.4088,2740.9,2740.5,3.64896]
[1724440597926,7.45,2741.3,2740.6,3.6487]
[1724440598135,2.4088,2741.2,2740.7,3.64867]
[1724440598338,7.45,2741.3,2740.8,3.64848]
[1724440598574,7.45,2741.3,2740.7,3.64867]
[1724440599043,7.45,2741.3,2740.5,6.12676]
[1724440599215,7.45,2741.3,2740.3,3.64917]
[1724440599216,5.95992,2741.2,2740.3,3.64917]
[1724440599500,3.64826,2741.1,2740.3,3.64913]
[1724440599701,0.960818,2741.0,2740.3,3.64913]
[1724440599907,2.3748,2740.9,2740.1,3.64937]
[1724440600214,2.3748,2740.9,2740.3,3.64921]
[1724440600667,2.3748,2740.9,2740.1,3.64937]
[1724440600999,5.3748,2740.9,2740.1,3.64946]
[1724440601208,5.3748,2740.9,2739.9,3.64964]
[1724440601209,5.07289302,2740.8,2739.9,3.64964]
[1724440601350,2.4653,2740.5,2739.7,7.29993]
[1724440601556,5.4653,2740.5,2739.7,7.29986]
[1724440601750,5.4653,2740.5,2739.6,3.65007]
[1724440602156,3.64911,2740.4,2739.6,3.65007]
[1724440602355,0.911441,2740.3,2739.7,3.65002]
[1724440602696,0.9750699,2740.3,2739.4,3.65035]
[1724440602939,2.4653,2740.2,2739.4,3.65035]
[1724440603232,2.4653,2740.2,2739.4,7.30069]
[1724440603431,2.4653,2740.2,2739.5,3.65027]
[1724440603644,0.34403699,2740.1,2739.5,3.65027]
[1724440603791,0.34403699,2740.1,2739.6,3.65015]
[1724440604012,0.0636289,2740.3,2739.8,3.64981]
[1724440604187,0.0636289,2740.3,2739.9,3.64974]
[1724440604540,3.0,2740.4,2740.0,3.64952]
[1724440604720,2.4387,2740.5,2740.0,7.29904]
[1724440604919,2.4387,2740.5,2740.1,3.64949]
[1724440605439,3.0,2740.7,2740.4,3.64908]
[1724440605647,0.0636237,2740.8,2740.2,2.3565]
[1724440605793,2.3541,2741.1,2740.7,3.6487]
[1724440606581,2.3541,2741.1,2740.5,3.64887]
[1724440606704,2.3541,2741.1,2740.3,3.64916]
[1724440606906,0.66133922,2741.0,2740.3,3.64915]
[1724440607144,2.3541,2741.1,2740.5,3.64888]
[1724440607804,6.64787,2741.4,2740.5,3.64888]
[1724440608004,5.365,2741.4,2740.7,3.64867]
[1724440608219,2.365,2741.4,2740.7,3.64867]
[1724440613197,2.365,2741.4,2740.7,3.64862]
[1724440613396,0.601266,2741.3,2740.5,3.64885]
[1724440613850,3.601266,2741.3,2740.5,3.64885]
[1724440614198,3.601266,2741.3,2740.6,3.64883]
[1724440614837,3.601266,2741.3,2740.5,3.64885]
[1724440614838,3.601266,2741.3,2740.7,3.64864]
[1724440615040,3.0,2741.3,2740.5,3.64892]
[1724440615244,2.365,2741.4,2741.0,3.64827]
[1724440615599,5.429,2741.7,2741.0,3.64827]
[1724440615803,9.07638,2741.7,2740.6,3.64875]
[1724440615997,3.64785,2741.4,2740.6,3.64875]
[1724440616249,3.64806,2741.2,2740.4,3.64902]
[1724440616412,4.03361422,2741.3,2740.2,3.64924]
[1724440616413,2.429,2741.1,2740.2,3.64924]
[1724440616613,2.429,2741.1,2740.3,3.64923]
[1724440616816,2.429,2741.1,2740.4,3.64901]
[1724440617013,0.907706,2741.0,2740.5,3.64895]
[1724440617218,2.429,2741.1,2740.6,3.64882]
[1724440617431,2.429,2741.1,2740.4,2.4888]
[1724440617763,2.429,2741.1,2740.6,3.64882]
[1724440619039,2.429,2741.1,2740.4,3.64897]
[1724440619250,2.429,2741.1,2740.5,3.64888]
[1724440619550,3.44005842,2741.1,2740.5,3.64888]
[1724440620646,3.44005842,2741.1,2740.3,3.64911]
[1724440620950,7.08822842,2741.1,2740.4,3.64909]
[1724440621147,3.44005842,2741.1,2740.4,3.64906]
[1724440621369,1.43475206,2741.0,2740.2,7.29852]
[1724440621506,1.43475206,2741.0,2740.3,3.64919]
[1724440621707,1.43475206,2741.0,2740.4,3.64908]
[1724440621911,3.44005842,2741.1,2740.6,3.64873]
[1724440621912,2.429,2741.1,2740.6,3.64873]
[1724440623056,6.64784,2741.4,2740.6,3.64874]
[1724440623057,5.2596,2741.4,2740.6,3.64874]
[1724440623355,3.0,2741.4,2740.9,3.64842]
[1724440623561,3.0,2741.6,2741.1,3.64815]
[1724440623857,2.2596,2741.7,2741.1,3.64809]
[1724440624172,0.53232096,2741.6,2741.1,3.64809]
[1724440624339,3.53232096,2741.6,2740.9,3.64833]
[1724440624540,3.53232096,2741.6,2741.1,3.64815]
[1724440625061,3.53232096,2741.6,2741.3,3.64786]
[1724440625229,0.53232096,2741.6,2741.3,3.64786]
[1724440625451,0.53232096,2741.6,2741.1,7.2962]
[1724440625630,0.53232096,2741.6,2741.1,3.64805]
[1724440626235,3.0,2741.8,2741.1,3.64805]
[1724440626416,3.0,2741.8,2741.2,3.64795]
[1724440626616,5.2596,2741.9,2740.9,3.64834]
[1724440626819,3.64739,2741.7,2740.9,3.64834]
[1724440627116,6.64751,2741.6,2740.7,3.64858]
[1724440627337,2.4562,2741.4,2740.7,3.64858]
[1724440628817,6.10397,2741.4,2740.5,3.6489]
[1724440629049,2.4562,2741.4,2740.8,3.64848]
[1724440630862,6.10404,2741.4,2740.6,3.64874]
[1724440631160,0.6768791,2741.3,2740.6,3.64874]
[1724440631371,0.6768791,2741.3,2740.6,7.29748]
[1724440631524,0.6768791,2741.3,2740.6,3.64874]
[1724440631924,2.4562,2741.4,2740.6,7.29749]
[1724440631925,6.10405,2741.4,2740.6,7.29749]
[1724440632320,6.10405,2741.4,2740.6,3.64874]
[1724440632721,7.90727215,2741.3,2740.5,3.64895]
[1724440632958,3.55,2741.3,2740.7,3.64868]
[1724440633268,3.55,2741.3,2740.6,3.64874]
[1724440633467,0.60062,2741.2,2740.6,3.64874]
[1724440633632,0.60062,2741.2,2740.6,7.29749]
[1724440633834,0.60062,2741.2,2740.6,3.64874]
[1724440634633,0.60062,2741.2,2740.3,3.64915]
[1724440634829,3.0,2741.3,2740.8,3.64849]
[1724440635072,5.4562,2741.4,2740.8,3.64849]
[1724440635267,5.4562,2741.4,2740.8,7.29698]
[1724440635430,5.4562,2741.4,2740.8,3.64849]
[1724440636771,5.4562,2741.4,2740.5,3.64884]
[1724440636924,0.9768631,2741.3,2740.3,7.2983]
[1724440637133,3.64806,2741.2,2740.3,3.64912]
[1724440637354,8.23615525,2741.3,2740.3,3.64912]
[1724440637559,3.9768631,2741.3,2740.5,3.64895]
[1724440637777,8.23615525,2741.3,2740.3,3.64912]
[1724440638078,3.6483,2741.0,2740.1,3.64944]
[1724440638243,3.0,2740.9,2740.1,3.64944]
[1724440638928,3.0,2740.9,2740.1,7.29886]
[1724440639133,3.0,2740.9,2740.1,3.64942]
[1724440639335,1.09075921,2740.8,2740.1,3.64942]
[1724440639536,1.09075921,2740.8,2739.9,7.29933]